bitfinex/quotes_ETHUSD_20240604
["timestamp","ask_amount","ask_price","bid_price","bid_amount"]
[1717492998922,2.6621,3756.5,3755.4,2.66278]
[1717492999106,2.6621,3756.5,3755.5,0.266278]
[1717492999691,2.66227,3756.2,3755.5,0.266278]
[1717493000226,0.05015195,3756.1,3755.0,2.66304]
[1717493000392,2.66227,3756.2,3755.0,2.66304]
[1717493000722,2.66227,3756.2,3755.3,2.66288]
[1717493002423,2.66227,3756.2,3755.5,2.66275]
[1717493002957,9.98172,3757.0,3756.1,2.66233]
[1717493003102,9.98172,3757.0,3756.2,0.266233]
[1717493003103,2.66172,3757.0,3756.2,0.266233]
[1717493003740,2.66191,3756.7,3755.7,2.66256]
[1717493004088,2.66215,3756.4,3755.7,2.66256]
[1717493004403,2.66215,3756.4,3755.5,2.66275]
[1717493005388,2.66189,3756.8,3755.5,2.66275]
[1717493005585,1.94,3757.6,3755.8,2.3236]
[1717493005785,2.66161,3757.2,3756.4,2.66207]
[1717493008573,2.66161,3757.2,3756.0,1.94]
[1717493008574,2.66161,3757.2,3756.0,2.66236]
[1717493009777,2.66178,3756.9,3756.0,2.66236]
[1717493010833,2.66178,3756.9,3755.6,4.60263]
[1717493011027,2.66178,3756.9,3755.7,0.75331661]
[1717493011379,2.66178,3756.9,3755.8,2.66251]
[1717493012759,2.66178,3756.9,3756.1,2.6623]
[1717493013904,2.66152,3757.3,3756.1,2.6623]
[1717493014346,2.66152,3757.3,3756.4,4.95141]
[1717493014548,2.66152,3757.3,3756.5,0.495141]
[1717493015708,2.66125,3757.7,3756.6,2.66196]
[1717493016899,2.66142,3757.4,3756.5,0.495141]
[1717493018393,7.32,3757.9,3756.2,2.66221]
[1717493018394,2.66164,3757.1,3756.2,2.66221]
[1717493020103,2.66164,3757.1,3756.4,2.6621]
[1717493020307,2.66139,3757.5,3756.4,2.6621]
[1717493031617,2.66139,3757.5,3756.7,2.66188]
[1717493031823,2.66139,3757.5,3756.8,0.266188]
[1717493037346,2.66139,3757.5,3756.7,2.66188]
[1717493038685,2.66139,3757.5,3756.3,2.66212]
[1717493038891,2.66159,3757.2,3756.0,1.94436691]
[1717493039120,2.66159,3757.2,3755.9,5.03573]
[1717493039389,2.66159,3757.2,3756.0,1.12861769]
[1717493039759,2.66179,3756.9,3756.0,1.12861769]
[1717493040588,3.55054261,3757.9,3756.1,1.94]
[1717493040744,3.55054261,3757.9,3756.5,1.94]
[1717493041090,2.4423,3757.9,3756.5,1.94]
[1717493041244,2.98653,3757.9,3756.6,0.24971303]
[1717493041450,2.4423,3757.9,3756.6,0.24971303]
[1717493041683,2.66124,3757.7,3756.6,0.24971303]
[1717493042034,2.66124,3757.7,3756.7,2.6619]
[1717493042875,5.3206,3758.3,3756.6,0.24971303]
[1717493042876,2.3206,3758.3,3756.6,4.43889617]
[1717493043132,1.10824261,3758.5,3756.6,4.43889617]
[1717493043133,2.66067,3758.5,3757.5,2.6613]
[1717493043411,2.66067,3758.5,3757.6,0.51281]
[1717493044177,2.66067,3758.5,3757.6,0.56603078]
[1717493045407,1.10824261,3759.3,3758.0,2.66096]
[1717493045408,2.6604,3758.9,3758.0,2.66096]
[1717493046800,2.66009,3759.3,3758.0,2.66096]
[1717493046999,0.33635852,3759.2,3758.0,3.25972322]
[1717493047206,2.66009,3759.3,3758.0,3.25972322]
[1717493047626,2.2928,3759.6,3758.3,2.66073]
[1717493048301,2.6598,3759.7,3758.6,2.66052]
[1717493049508,2.65952,3760.1,3758.6,2.66052]
[1717493049745,2.65952,3760.1,3758.9,2.66033]
[1717493049963,0.265952,3760.0,3758.9,2.66033]
[1717493050810,2.3765,3760.6,3758.9,2.66033]
[1717493050811,2.65921,3760.6,3759.2,2.66007]
[1717493053874,2.65935,3760.4,3759.2,2.66007]
[1717493056476,2.65935,3760.4,3759.4,2.65992]
[1717493059293,2.65935,3760.4,3759.3,2.4549]
[1717493059868,2.65935,3760.4,3759.0,2.66027]
[1717493060171,2.65952,3760.1,3759.1,0.500547]
[1717493065058,2.65952,3760.1,3759.0,2.66027]
[1717493066761,2.65976,3759.8,3759.0,2.66027]
[1717493066963,2.65976,3759.8,3758.8,2.3452]
[1717493067410,2.65976,3759.8,3758.6,2.66052]
[1717493068604,2.65997,3759.5,3758.3,2.4315]
[1717493068827,2.4958,3759.4,3758.2,2.6608]
[1717493068980,2.4958,3759.4,3758.0,0.59876322]
[1717493068981,2.66015,3759.2,3758.0,0.59876322]
[1717493069299,2.66035,3758.9,3758.0,0.59876322]
[1717493070904,2.6601,3759.3,3758.1,4.60091]
[1717493072305,2.6601,3759.3,3758.4,2.66068]
[1717493074311,2.6598,3759.7,3758.4,2.66068]
[1717493074469,2.6598,3759.7,3758.6,2.66049]
[1717493074671,2.6598,3759.7,3758.6,2.926539]
[1717493079930,2.6598,3759.7,3758.7,2.3392]
[1717493080925,2.6598,3759.7,3758.8,2.66041]
[1717493081136,2.66001,3759.4,3758.7,2.3392]
[1717493082327,2.66001,3759.4,3758.8,0.2605249]
[1717493083554,2.66001,3759.4,3758.6,0.266049]
[1717493083834,2.66001,3759.4,3758.4,2.66067]
[1717493084015,2.66023,3759.1,3758.0,3.25968322]
[1717493084730,2.2534,3759.6,3757.9,2.4196]
[1717493084731,2.66044,3758.8,3757.9,2.4196]
[1717493087201,2.66044,3758.8,3757.6,2.66121]
[1717493088497,2.66044,3758.8,3757.9,2.66103]
[1717493088726,2.2534,3759.6,3758.1,2.66088]
[1717493088727,2.66018,3759.2,3758.1,2.66088]
[1717493091240,2.66037,3758.9,3758.1,2.66088]
[1717493092291,2.66037,3758.9,3758.0,2.4403]
[1717493093393,2.66037,3758.9,3758.1,0.24403]
[1717493094435,2.66037,3758.9,3758.2,2.66084]
[1717493095418,2.66012,3759.3,3758.2,2.66084]
[1717493098232,2.66012,3759.3,3758.4,2.66064]
[1717493099344,2.2534,3759.6,3758.1,0.24403]
[1717493099345,2.66028,3759.0,3758.1,0.24403]
[1717493099514,2.66028,3759.0,3758.2,0.34620703]
[1717493105319,2.66028,3759.0,3758.2,2.81770703]
[1717493105515,2.66028,3759.0,3758.2,0.34620703]
[1717493107486,2.66028,3759.0,3758.3,2.66077]
[1717493108288,2.66006,3759.4,3758.3,2.66077]
[1717493108501,2.66006,3759.4,3758.4,0.3006977]
[1717493109291,2.66006,3759.4,3758.5,2.66061]
[1717493110308,2.66006,3759.4,3758.7,2.66048]
[1717493111309,2.65978,3759.7,3758.7,2.66048]
[1717493111458,2.65978,3759.7,3758.8,0.502418]
[1717493112014,2.65978,3759.7,3758.8,1.309418]
[1717493114103,2.65978,3759.7,3758.8,0.502418]
[1717493116476,2.65978,3759.7,3758.9,0.92431116]
[1717493116876,2.65978,3759.7,3758.8,0.502418]
[1717493117078,2.65978,3759.7,3758.9,0.60837283]
[1717493129547,2.66,3759.4,3758.7,2.66048]
[1717493133662,2.66,3759.4,3758.8,0.92430622]
[1717493133861,2.66,3759.4,3758.8,0.92430587]
[1717493134147,2.66,3759.4,3758.8,1.73130587]
[1717493134301,2.66,3759.4,3758.9,0.73126161]
[1717493136102,2.66,3759.4,3758.6,3.1707]
[1717493136301,2.66,3759.4,3758.7,0.92435816]
[1717493139144,2.66,3759.4,3758.8,0.807]
[1717493140204,2.66,3759.4,3758.6,3.1707]
[1717493140404,2.66,3759.4,3758.7,0.92434838]
[1717493140604,2.66,3759.4,3758.8,0.46521786]
[1717493142809,2.66,3759.4,3758.6,0.807]
[1717493143010,2.66,3759.4,3758.7,0.92435371]
[1717493143211,2.66,3759.4,3758.5,0.55713027]
[1717493143414,2.66,3759.4,3758.6,0.92435624]
[1717493143609,2.66,3759.4,3758.7,0.92435624]
[1717493143921,2.66,3759.4,3758.5,1.36413027]
[1717493144125,2.66,3759.4,3758.6,1.57914705]
[1717493144438,2.66,3759.4,3758.7,0.9243689]
[1717493146455,2.66,3759.4,3758.6,0.65477815]
[1717493146749,2.66,3759.4,3758.7,0.9243622]
[1717493147310,2.65978,3759.7,3758.7,3.5847922]
[1717493147529,2.65978,3759.7,3758.8,2.21103226]
[1717493147727,2.65978,3759.7,3759.0,0.807]
[1717493148577,2.65978,3759.7,3759.0,1.73126979]
[1717493148712,2.65978,3759.7,3759.1,0.92426979]
[1717493149114,2.65978,3759.7,3758.9,4.99534]
[1717493149374,1.10824261,3760.1,3759.2,3.46713]
[1717493149551,1.91524261,3760.1,3759.2,3.46713]
[1717493149761,1.10824261,3760.0,3759.2,3.46713]
[1717493149924,3.37124261,3760.4,3759.3,0.92430164]
[1717493150127,0.807,3760.1,3759.3,0.92430164]
[1717493150738,2.65959,3760.0,3759.3,0.92430164]
[1717493155947,2.65959,3760.0,3759.4,0.807]
[1717493156269,2.65959,3760.0,3759.6,0.807]
[1717493156425,2.65959,3760.0,3759.4,0.807]
[1717493156619,2.65959,3760.0,3759.5,0.54105797]
[1717493158559,2.65935,3760.4,3759.5,0.54105797]
[1717493158774,2.65935,3760.4,3759.6,3.1364]
[1717493159216,5.04137,3760.8,3759.8,0.807]
[1717493159354,5.84837,3760.8,3759.8,1.58885286]
[1717493159557,5.04137,3760.8,3759.8,1.58885286]
[1717493159758,5.84837,3760.8,3759.8,1.58885286]
[1717493159959,5.04137,3760.8,3759.8,1.58885286]
[1717493160163,5.84837,3760.8,3759.8,1.58885286]
[1717493161105,3.46607,3760.8,3759.8,1.58885286]
[1717493161508,2.65923,3760.5,3759.8,1.58885286]
[1717493162166,2.65923,3760.5,3759.9,0.65780929]
[1717493163704,3.46623,3760.5,3759.6,4.98924]
[1717493163916,2.65947,3760.2,3759.4,2.4033]
[1717493164462,2.65964,3759.9,3759.2,2.66011]
[1717493164768,2.65964,3759.9,3759.0,1.38625573]
[1717493164769,0.807,3759.7,3759.0,1.38625573]
[1717493165078,0.807,3759.7,3758.9,3.27073295]
[1717493165283,0.807,3759.7,3759.0,0.6738083]
[1717493165682,2.65986,3759.6,3759.0,0.6738083]
[1717493169178,2.65962,3760.0,3759.1,0.807]
[1717493169372,2.65962,3760.0,3759.3,0.807]
[1717493169617,2.65962,3760.0,3759.5,0.807]
[1717493170174,0.807,3760.5,3759.5,3.46689]
[1717493170175,2.65925,3760.5,3759.5,3.46689]
[1717493170371,2.65925,3760.5,3759.6,0.346689]
[1717493170577,2.65925,3760.5,3759.7,0.807]
[1717493171008,2.65925,3760.5,3759.6,0.346689]
[1717493171211,2.65925,3760.5,3759.7,0.807]
[1717493172371,2.65925,3760.5,3759.9,0.807]
[1717493173295,2.65925,3760.5,3760.1,0.807]
[1717493174758,2.65925,3760.5,3759.9,0.807]
[1717493175473,2.65925,3760.5,3759.9,1.4355759]
[1717493179044,2.65925,3760.5,3760.1,0.807]
[1717493179559,2.65899,3760.9,3760.1,0.807]
[1717493180954,2.65899,3760.9,3760.3,0.807]
[1717493181254,2.65871,3761.3,3760.5,0.807]
[1717493183294,2.65871,3761.3,3760.5,1.153634]
[1717493185401,2.65871,3761.3,3760.5,0.346634]
[1717493185599,2.65871,3761.3,3760.5,1.153634]
[1717493197421,2.65871,3761.3,3760.6,0.6279274]
[1717493199130,2.65871,3761.3,3760.5,0.346634]
[1717493199335,0.807,3761.2,3760.3,4.91794]
[1717493199650,0.807,3761.2,3760.3,5.72494]
[1717493200787,2.65871,3761.3,3760.3,5.72494]
[1717493201087,2.65871,3761.3,3760.5,0.807]
[1717493201251,2.65871,3761.3,3760.6,0.57781189]
[1717493202179,0.807,3761.2,3760.6,0.57781189]
[1717493203461,0.807,3761.2,3760.3,4.91794]
[1717493205236,0.807,3761.2,3760.3,5.72494]
[1717493206103,2.65871,3761.3,3760.3,5.72494]
[1717493207092,2.65871,3761.3,3760.3,4.91794]
[1717493207287,2.65871,3761.3,3760.8,0.807]
[1717493208142,2.65871,3761.3,3760.6,0.807]
[1717493209002,2.65871,3761.3,3760.6,0.572494]
[1717493209202,0.807,3761.1,3760.3,4.91794]
[1717493209834,5.72981,3761.3,3760.3,4.91794]
[1717493210717,4.92281,3761.3,3760.3,4.91794]
[1717493210921,2.65883,3761.1,3760.3,4.91794]
[1717493211638,2.65883,3761.1,3760.3,2.65934]
[1717493211956,3.46603,3760.8,3759.9,5.6660759]
[1717493212451,2.65903,3760.8,3760.0,0.807]
[1717493213212,2.65903,3760.8,3759.9,6.4730759]
[1717493215614,2.65903,3760.8,3760.1,0.807]
[1717493215857,2.65903,3760.8,3760.1,1.45430759]
[1717493216057,2.65903,3760.8,3760.5,0.807]
[1717493216235,2.65903,3760.8,3760.3,0.807]
[1717493216913,2.65878,3761.2,3760.3,0.807]
[1717493220573,2.65878,3761.2,3760.4,0.92392647]
[1717493220771,2.65878,3761.2,3760.5,0.43903365]
[1717493222778,2.65878,3761.2,3760.5,2.80463365]
[1717493226011,2.65878,3761.2,3760.6,0.92389769]
[1717493228288,2.65888,3761.0,3760.6,0.92389769]
[1717493228486,2.65888,3761.0,3760.3,1.94303355]
[1717493228706,2.65888,3761.0,3760.3,3.83537304]
[1717493228908,2.65888,3761.0,3760.4,0.92390954]
[1717493229471,0.807,3760.9,3760.4,0.92390954]
[1717493229690,2.65904,3760.8,3760.1,0.55713027]
[1717493230000,2.65904,3760.8,3760.2,0.54336297]
[1717493230202,2.65904,3760.8,3759.9,2.75003355]
[1717493230400,2.65904,3760.8,3760.0,0.92402686]
[1717493230779,2.65904,3760.8,3760.1,0.92402686]
[1717493231103,2.65904,3760.8,3759.9,1.38590328]
[1717493231277,2.65944,3760.2,3759.9,0.92405198]
[1717493231479,2.4819,3760.9,3759.6,2.19290328]
[1717493231480,2.65914,3760.7,3759.6,2.19290328]
[1717493231678,2.65914,3760.7,3759.5,2.90423027]
[1717493231679,2.65914,3760.7,3760.0,0.807]
[1717493231989,2.65914,3760.7,3760.1,0.92402737]
[1717493232201,2.65914,3760.7,3760.1,2.2808]
[1717493232526,2.65914,3760.7,3760.2,2.09546384]
[1717493232820,2.65914,3760.7,3760.2,1.17149303]
[1717493233020,2.65914,3760.7,3760.4,0.807]
[1717493233179,2.65914,3760.7,3760.2,0.36449303]
[1717493233386,2.65914,3760.7,3760.3,1.73095696]
[1717493233716,2.65914,3760.7,3760.4,0.437625]
[1717493236050,2.65884,3761.1,3760.4,0.437625]
[1717493237014,2.65884,3761.1,3760.5,0.92390887]
[1717493237319,2.65884,3761.1,3760.5,1.73090887]
[1717493237538,2.65884,3761.1,3760.5,0.807]
[1717493237738,2.65884,3761.1,3760.6,0.18017553]
[1717493242711,2.65884,3761.1,3760.4,0.437625]
[1717493243313,2.65884,3761.1,3760.1,3.64493027]
[1717493243541,2.65884,3761.1,3760.2,0.92396143]
[1717493244915,0.807,3760.5,3760.2,0.92396143]
[1717493245141,0.807,3760.3,3759.8,0.55713027]
[1717493245347,0.807,3760.3,3759.9,0.92400928]
[1717493245619,2.65918,3760.6,3759.6,2.2874]
[1717493245863,0.807,3760.3,3759.7,0.55044003]
[1717493246159,0.807,3760.3,3759.7,1.47455495]
[1717493246343,0.807,3760.3,3759.7,0.55044003]
[1717493247824,3.46636,3760.3,3759.7,0.55044003]
[1717493248025,3.46655,3760.1,3759.4,1.94329804]
[1717493248254,3.46655,3760.1,3759.5,0.92412048]
[1717493248562,3.46655,3760.1,3759.2,4.225411]
[1717493248720,3.46655,3760.1,3759.3,0.92416714]
[1717493248919,3.46655,3760.1,3759.2,2.83923027]
[1717493249125,3.46655,3760.1,3759.3,0.92416897]
[1717493249664,3.46655,3760.1,3759.3,1.73116897]
[1717493249864,3.46655,3760.1,3759.3,2.19325346]
[1717493250034,2.65955,3760.1,3759.3,0.807]
[1717493251434,2.65955,3760.1,3759.4,0.92413342]
[1717493251620,2.65955,3760.1,3759.5,1.44836944]
[1717493252421,2.65955,3760.1,3759.3,0.807]
[1717493252645,2.65955,3760.1,3759.4,0.92412981]
[1717493253120,2.65955,3760.1,3759.3,0.807]
[1717493253460,2.65955,3760.1,3759.4,0.92413062]
[1717493256621,2.65955,3760.1,3759.4,0.807]
[1717493256825,2.65955,3760.1,3759.4,1.67768413]
[1717493262170,2.65955,3760.1,3759.4,0.87068413]
[1717493264667,3.46655,3760.1,3759.2,2.40046103]
[1717493264822,3.46655,3760.1,3759.3,0.92412937]
[1717493265732,2.65971,3759.9,3759.3,0.92412937]
[1717493266167,2.65971,3759.9,3759.2,1.01420757]
[1717493266369,0.807,3759.6,3758.8,2.81083027]
[1717493266668,0.807,3759.6,3758.7,2.66044]
[1717493266669,2.65992,3759.5,3758.9,0.92421671]
[1717493266868,2.65992,3759.5,3758.7,2.66044]
[1717493267930,2.65992,3759.5,3758.8,0.807]
[1717493268131,2.65992,3759.5,3758.9,0.6069652]
[1717493271565,2.65992,3759.5,3758.6,2.602212]
[1717493271766,2.66008,3759.3,3758.5,1.38643181]
[1717493271955,2.66008,3759.3,3758.6,0.807]
[1717493272286,2.66008,3759.3,3758.6,1.407]
[1717493272696,0.807,3758.8,3758.6,0.6]
[1717493272861,2.66076,3758.4,3757.5,2.47839082]
[1717493273061,0.807,3758.1,3757.4,1.38658016]
[1717493273250,0.807,3758.3,3757.3,3.46842]
[1717493273452,0.807,3758.3,3757.4,0.92459269]
[1717493273647,0.807,3758.3,3757.5,0.63367231]
[1717493273851,2.66076,3758.4,3757.5,1.44067231]
[1717493274450,2.66076,3758.4,3757.7,0.807]
[1717493276406,2.66076,3758.4,3757.5,0.63367231]
[1717493276407,2.66076,3758.4,3757.5,1.44067231]
[1717493277671,2.66085,3758.2,3757.5,1.44067231]
[1717493277885,2.66085,3758.2,3757.6,0.71020923]
[1717493280358,2.66085,3758.2,3757.4,0.807]
[1717493288690,2.66085,3758.2,3757.5,0.807]
[1717493291681,2.66085,3758.2,3757.4,0.807]
[1717493293708,3.46806,3757.9,3757.0,2.3379]
[1717493293866,3.46806,3757.9,3757.0,3.1449]
[1717493294072,3.46806,3757.9,3757.1,0.86086]
[1717493295812,2.2579,3757.8,3756.6,5.4723]
[1717493295970,2.66142,3757.4,3756.5,2.66198]
[1717493296177,2.66142,3757.4,3756.7,0.807]
[1717493296508,2.66142,3757.4,3756.7,1.153898]
[1717493298119,2.66142,3757.4,3755.8,0.55713027]
[1717493298120,2.66169,3757.1,3756.1,2.3793]
[1717493298319,2.66169,3757.1,3756.4,0.807]
[1717493299117,5.10889,3757.1,3756.4,0.807]
[1717493299977,5.10889,3757.1,3756.2,3.0]
[1717493300319,5.10889,3757.1,3756.4,0.807]
[1717493302291,5.10889,3757.1,3756.5,0.3807]
[1717493309557,5.10889,3757.1,3756.3,2.66218]
[1717493311169,5.10889,3757.1,3756.2,0.807]
[1717493312427,5.10889,3757.1,3756.1,2.66227]
[1717493312633,5.10889,3757.1,3756.6,0.807]
[1717493313058,5.10889,3757.1,3756.4,0.807]
[1717493313258,5.10889,3757.1,3756.4,1.153927]
[1717493313477,5.10889,3757.1,3756.6,0.807]
[1717493313767,5.10889,3757.1,3756.4,1.153927]
[1717493314521,5.10889,3757.1,3756.4,0.346927]
[1717493314742,5.10889,3757.1,3756.3,0.807]
[1717493316875,2.3379,3756.7,3755.7,6.21969027]
[1717493317217,3.46899,3756.6,3755.8,3.0]
[1717493317373,3.46899,3756.6,3755.8,3.62196903]
[1717493319267,3.46899,3756.6,3755.7,2.66256]
[1717493319466,2.2903,3756.2,3755.3,4.05041582]
[1717493319671,2.2903,3756.2,3755.4,0.807]
[1717493321163,2.66222,3756.3,3755.9,0.807]
[1717493322978,2.66222,3756.3,3755.7,0.807]
[1717493323328,2.3693,3756.2,3755.3,2.66284]
[1717493323551,2.3693,3756.2,3755.6,0.807]
[1717493323764,2.66243,3756.0,3755.1,1.3876193]
[1717493323973,2.66243,3756.0,3755.2,0.807]
[1717493327607,2.66243,3756.0,3754.8,2.66319]
[1717493327608,2.66261,3755.8,3754.8,2.66319]
[1717493327784,2.2999,3755.6,3754.8,2.66319]
[1717493328514,2.66276,3755.5,3754.8,2.66319]
[1717493329074,2.66307,3755.1,3754.1,0.55713027]
[1717493329283,2.3109,3755.0,3754.3,0.807]
[1717493329794,2.3109,3755.0,3754.1,0.807]
[1717493329966,2.3109,3755.0,3753.6,3.73432466]
[1717493330166,2.3109,3755.0,3753.7,1.91232125]
[1717493330404,2.3109,3755.0,3753.7,0.98691503]
[1717493330763,2.3109,3755.0,3754.0,2.66376]
[1717493331213,2.3109,3755.0,3754.1,3.0]
[1717493331713,2.3109,3755.0,3754.2,2.66366]
[1717493331867,2.3109,3755.0,3754.3,0.566366]
[1717493332270,2.66307,3755.1,3754.3,0.566366]
[1717493340188,2.4118,3755.3,3754.4,2.66353]
[1717493340371,2.3963,3755.6,3755.1,2.66303]
[1717493340767,2.3963,3755.9,3755.1,2.66303]
[1717493341013,2.3963,3755.9,3755.3,2.66285]
[1717493341606,2.4694,3756.3,3755.6,2.66265]
[1717493341806,2.66196,3756.7,3755.6,2.66265]
[1717493347236,2.66166,3757.1,3756.0,2.6624]
[1717493348827,2.66187,3756.8,3756.0,2.6624]
[1717493349029,2.928057,3756.8,3756.0,2.6624]
[1717493349236,2.928057,3756.8,3755.5,4.60469]
[1717493349421,2.928057,3756.8,3755.5,2.66269]
[1717493349837,2.66199,3756.6,3755.5,2.66269]
[1717493350221,2.66233,3756.2,3755.4,2.66282]
[1717493350418,2.66233,3756.2,3755.5,0.266282]
[1717493354746,2.66201,3756.6,3755.5,0.266282]
[1717493355110,0.266187,3756.8,3755.1,1.38762577]
[1717493355111,2.4004,3756.0,3755.1,1.38762577]
[1717493355315,2.4004,3756.0,3755.0,2.66311]
[1717493355731,2.66247,3755.9,3754.6,2.66335]
[1717493363289,2.66247,3755.9,3754.7,0.92524019]
[1717493363493,2.66247,3755.9,3754.8,3.02206902]
[1717493364038,2.66247,3755.9,3754.9,0.92520047]
[1717493365232,2.66247,3755.9,3754.8,3.02206902]
[1717493367985,2.66247,3755.9,3754.8,2.66321]
[1717493370356,2.66247,3755.9,3754.9,0.92520045]
[1717493371076,2.66247,3755.9,3754.8,2.66321]
[1717493371278,2.66247,3755.9,3754.9,0.92521478]
[1717493371678,2.66247,3755.9,3754.8,2.66321]
[1717493371878,2.66247,3755.9,3754.8,2.98524403]
[1717493373473,2.66247,3755.9,3754.9,0.92519957]
[1717493375148,2.66247,3755.9,3754.8,2.98524403]
[1717493375486,2.66247,3755.9,3755.0,2.66311]
[1717493379877,2.66247,3755.9,3755.1,0.92518036]
[1717493380076,2.66247,3755.9,3755.1,0.809]
[1717493380463,2.4004,3756.0,3755.2,2.66295]
[1717493380695,2.66224,3756.3,3755.7,0.809]
[1717493380696,4.99044,3756.3,3755.7,0.809]
[1717493382353,2.3282,3756.3,3755.8,2.66253]
[1717493382679,2.3282,3756.3,3755.1,1.51329284]
[1717493382680,2.4039,3756.7,3756.0,2.6624]
[1717493382857,2.4039,3756.7,3756.1,0.809]
[1717493383254,2.4039,3756.7,3756.1,1.21185303]
[1717493384294,9.98168,3757.1,3756.2,2.66224]
[1717493384500,9.98168,3757.1,3756.3,0.809]
[1717493384501,2.66168,3757.1,3756.3,0.809]
[1717493384653,2.66168,3757.1,3756.5,0.809]
[1717493385288,2.4398,3757.2,3756.5,3.47102]
[1717493385879,2.4398,3757.2,3756.5,2.66202]
[1717493387368,2.4398,3757.2,3756.1,0.40285303]
[1717493387369,5.611487,3757.2,3756.1,2.66228]
[1717493387606,5.10137,3757.2,3756.1,2.66228]
[1717493391978,2.4992,3756.8,3755.8,1.38778764]
[1717493392315,2.66191,3756.7,3755.8,2.31269895]
[1717493392641,2.66191,3756.7,3755.7,5.66258]
[1717493392642,2.66191,3756.7,3755.9,0.85324092]
[1717493394717,2.66191,3756.7,3755.7,2.66258]
[1717493394926,2.3942,3756.3,3755.3,2.66284]
[1717493395899,2.66227,3756.2,3755.3,2.66284]
[1717493398414,2.66227,3756.2,3755.3,4.05043191]
[1717493398609,2.66227,3756.2,3755.4,0.95298596]
[1717493400349,2.3877,3756.4,3755.5,2.71599023]
[1717493400510,2.3877,3756.4,3755.5,2.66274]
[1717493400710,2.66203,3756.6,3755.7,2.66258]
[1717493402554,2.2573,3756.8,3755.7,2.66258]
[1717493402757,2.66174,3757.0,3756.0,2.66238]
[1717493405661,2.66174,3757.0,3756.1,2.3437]
[1717493405966,2.66174,3757.0,3756.2,2.66226]
[1717493406556,4.96326,3757.4,3756.2,2.66226]
[1717493406855,2.66146,3757.4,3756.5,2.66203]
[1717493407048,12.37218,3757.8,3756.7,2.6619]
[1717493407227,5.05218,3757.8,3756.7,2.6619]
[1717493410876,2.66118,3757.8,3756.9,5.09381]
[1717493411983,2.6609,3758.2,3756.9,5.09381]
[1717493412480,2.6609,3758.2,3757.2,2.66154]
[1717493412689,0.50831,3758.1,3757.2,2.66154]
[1717493413043,2.6609,3758.2,3757.2,2.66154]
[1717493416242,2.6609,3758.2,3757.5,2.66133]
[1717493419058,2.6609,3758.2,3757.1,2.66157]
[1717493423887,2.6609,3758.2,3757.4,2.66139]
[1717493424090,2.6609,3758.2,3757.6,0.808]
[1717493424292,2.6609,3758.2,3757.8,0.808]
[1717493424466,2.6609,3758.2,3757.6,0.808]
[1717493426311,2.66103,3758.0,3757.0,2.66163]
[1717493426681,2.66103,3758.0,3757.2,0.808]
[1717493428087,2.66103,3758.0,3757.2,1.398173]
[1717493431320,2.66103,3758.0,3757.2,0.590173]
[1717493431529,2.66103,3758.0,3757.4,0.808]
[1717493432199,2.66077,3758.4,3757.4,0.808]
[1717493432399,1.10824261,3759.4,3757.4,0.808]
[1717493432610,1.10824261,3759.7,3759.3,0.808]
[1717493432932,2.3379,3760.1,3759.1,2.66018]
[1717493433088,2.3379,3760.1,3759.3,0.808]
[1717493433287,0.31459,3760.0,3759.3,0.808]
[1717493433984,0.31459,3760.0,3759.1,2.66018]
[1717493434393,2.3379,3760.1,3759.1,2.66018]
[1717493439024,2.65957,3760.0,3758.7,2.66046]
[1717493439228,2.3458,3759.6,3758.3,2.66076]
[1717493439743,5.3458,3759.6,3758.3,2.66076]
[1717493439945,0.72828,3759.5,3758.3,2.66076]
[1717493440254,3.72828,3759.5,3758.3,2.66076]
[1717493440587,0.05015195,3759.4,3757.9,2.66105]
[1717493441351,2.66025,3759.1,3757.9,2.66105]
[1717493445711,3.0,3759.5,3758.5,2.66059]
[1717493445918,0.80056,3759.4,3757.6,2.4198]
[1717493446146,5.3458,3759.6,3757.6,5.4198]
[1717493446147,3.0,3759.5,3757.6,5.4198]
[1717493446448,4.2828,3759.6,3757.6,5.4198]
[1717493446601,2.66017,3759.2,3758.0,2.66093]
[1717493446800,0.266017,3759.1,3758.0,2.66093]
[1717493447002,3.0,3759.5,3758.0,2.66093]
[1717493447443,2.66045,3758.8,3757.6,2.66124]
[1717493455045,2.66045,3758.8,3757.6,2.66124]
[1717493456152,2.4058,3758.9,3757.5,4.737]
[1717493456312,5.06357,3759.2,3757.6,7.27446585]
[1717493456512,5.06357,3759.2,3757.7,2.3110658]
[1717493456743,5.06357,3759.2,3757.8,0.83551961]
[1717493457210,5.06357,3759.2,3758.2,2.66081]
[1717493458020,2.66037,3758.9,3757.8,3.49659961]
[1717493460041,2.66037,3758.9,3758.1,2.6609]
[1717493460249,2.66037,3758.9,3758.2,0.27141142]
[1717493461759,2.4034,3759.2,3758.2,0.27141142]
[1717493461971,2.4034,3759.2,3758.3,2.71394879]
[1717493462349,2.4034,3759.2,3758.3,2.66074]
[1717493464208,2.4034,3759.2,3758.4,0.807]
[1717493464484,2.4034,3759.2,3758.4,1.18091514]
[1717493466665,3.46711,3759.3,3758.4,1.18091514]
[1717493466873,2.66011,3759.3,3758.4,1.18091514]
[1717493467181,2.65983,3759.7,3758.8,0.807]
[1717493467501,3.46683,3759.7,3758.8,0.807]
[1717493467650,3.46683,3759.7,3758.8,1.13189]
[1717493467854,0.807,3759.5,3758.8,0.32489]
[1717493468298,3.46683,3759.7,3758.8,0.32489]
[1717493469373,2.65983,3759.7,3758.8,0.32489]
[1717493469598,2.65983,3759.7,3758.8,1.13189]